fUSD/lending_fUSD_20241220
["ID","MTS","AMOUNT","RATE_DAILY","PERIOD"]
[346088079,1734697833360,-500.0,0.00012999,2]
[346088080,1734697833371,-500.0,0.00012999,2]
[346088081,1734697833381,-500.0,0.00012999,2]
[346088082,1734697833391,-500.0,0.00012999,2]
[346088083,1734697833400,-500.0,0.00012999,2]
[346088084,1734697833410,-500.0,0.00012999,2]
[346088085,1734697833420,-500.0,0.00012999,2]
[346088086,1734697833430,-528.71574319,0.00012999,2]
[346088087,1734697833439,-500.0,0.00012999,2]
[346088088,1734697833449,-500.0,0.00012999,2]
[346088089,1734697833458,-500.0,0.00012999,2]
[346088090,1734697833468,-500.0,0.00012999,2]
[346088091,1734697833479,-500.0,0.00012999,2]
[346088092,1734697833489,-500.0,0.00012999,2]
[346088093,1734697833498,-500.0,0.00012999,2]
[346088094,1734697833508,-500.0,0.00012999,2]
[346088095,1734697833518,-500.0,0.00012999,2]
[346088096,1734697833528,-500.0,0.00012999,2]
[346088097,1734697833538,-500.0,0.00012999,2]
[346088098,1734697833548,-500.0,0.00012999,2]
[346088099,1734697833563,-500.0,0.00012999,2]
[346088100,1734697833573,-500.0,0.00012999,2]
[346088101,1734697833583,-500.0,0.00012999,2]
[346088102,1734697833592,-500.0,0.00012999,2]
[346088103,1734697833602,-500.0,0.00012999,2]
[346088104,1734697833611,-500.0,0.00012999,2]
[346088105,1734697833621,-500.0,0.00012999,2]
[346088106,1734697833631,-500.0,0.00012999,2]
[346088107,1734697833641,-500.0,0.00012999,2]
[346088108,1734697833651,-500.0,0.00012999,2]
[346088109,1734697833661,-150.0,0.00012999,2]
[346088110,1734697833671,-150.0,0.00012999,2]
[346088111,1734697833680,-150.0,0.00012999,2]
[346088112,1734697833689,-150.0,0.00012999,2]
[346088113,1734697833699,-150.0,0.00012999,2]
[346088114,1734697833707,-150.0,0.00012999,2]
[346088115,1734697833716,-150.0,0.00012999,2]
[346088116,1734697833725,-150.0,0.00012999,2]
[346088117,1734697833735,-150.0,0.00012999,2]
[346088118,1734697833744,-150.0,0.00012999,2]
[346088119,1734697833754,-150.0,0.00012999,2]
[346088120,1734697833763,-9106.66494126,0.00013,2]
[346088121,1734697833775,-1401.91520851,0.00013,2]
[346088122,1734697833790,-31213.00094347,0.00013,2]
[346088123,1734697833801,-44590.48757958,0.00013,2]
[346088124,1734697833822,-2681.13771318,0.00013,2]
[346088125,1734697833834,-2134.74678327,0.00013,2]
[346088126,1734697833846,-4775.95831504,0.00013,2]
[346088127,1734697833858,-3446.21271739,0.00013,2]
[346088128,1734697836345,-159.81120176,0.00012973,2]
[346088129,1734697836356,-500.28457594,0.00012973,2]
[346088130,1734697836366,-452.2154223,0.00013,2]
[346088131,1734697836378,-9362.3874,0.00013,2]
[346088132,1734697836390,-1070.02206066,0.00013,2]
[346088133,1734697836415,-519.65761556,0.00013,2]
[346088134,1734697836587,-876.33,0.00013,2]
[346088135,1734697836599,-32050.67803,0.00013,2]
[346088136,1734697836615,-3300.8194444,0.00013,2]
[346088137,1734697836627,-1868.7,0.00013,2]
[346088220,1734697838191,-1851.85050424,0.00013,2]
[346088221,1734697838311,-2043.7066621,0.00013,2]
[346088222,1734697838323,-4212.71697305,0.00013,2]
[346088223,1734697838375,-46290.0,0.00013,2]
[346088224,1734697838387,-3093.23546,0.00013,2]
[346088225,1734697838398,-1116.08613943,0.00013,2]
[346088226,1734697838410,-470.91773345,0.00013,2]
[346088227,1734697838438,-186799.56912788,0.00013,2]
[346088228,1734697838451,-905.69999991,0.00013,2]
[346088229,1734697838462,-64040.48455026,0.00013,2]
[346088230,1734697838473,-391.60679645,0.00013,2]
[346088231,1734697838517,-737.04753722,0.00013,2]
[346088232,1734697838528,-924.54,0.00013,2]
[346088233,1734697838540,-919.34798912,0.00013,2]
[346088234,1734697838572,-550.68178164,0.00013,2]
[346088414,1734697840190,-34799.87422559,0.00013,2]
[346088421,1734697840246,-1600.65,0.00013,2]
[346088423,1734697840257,-25640.33392422,0.00013,2]
[346088429,1734697840307,-257669.98487958,0.00013,2]
[346088431,1734697840322,-75159.53447529,0.00013,2]
[346088433,1734697840333,-25820.6240994,0.00013,2]
[346088436,1734697840344,-82506.3434315,0.00013,2]
[346088451,1734697840499,-1586.20375276,0.00013,2]
[346088454,1734697840514,-906.28416967,0.00013,2]
[346088456,1734697840525,-3457.55576754,0.00013,2]
[346088461,1734697840566,-66861.03291069,0.00013,2]
[346088463,1734697840578,-57173.19967466,0.00013,2]
[346088465,1734697840589,-1428.8814965,0.00013,2]
[346088469,1734697840622,-432.21,0.00013,2]
[346088471,1734697840633,-2327.825,0.00013,2]
[346088473,1734697840645,-1168.56562613,0.00013,2]
[346088476,1734697840666,-267.18699451,0.00013,2]
[346088478,1734697840678,-933.32,0.00013,2]
[346088479,1734697840690,-3181.8,0.00013,2]
[346088480,1734697840702,-911.7987451,0.00013,2]
[346088481,1734697840720,-625.0172452,0.00013,2]
[346088484,1734697840735,-600.60503734,0.00013,2]
[346088486,1734697840746,-4629.82623,0.00013,2]
[346088488,1734697840757,-3075.58078009,0.00013,2]
[346088491,1734697840779,-323.16725092,0.00013,2]
[346088706,1734697843344,-32213.00000001,0.00013,2]
[346088711,1734697843403,-46461.91102336,0.00013,2]
[346088712,1734697843415,-3423.52808509,0.00013,2]
[346088713,1734697843573,-4640.90327936,0.00013,2]
[346088714,1734697843639,-531.97035179,0.00013,2]
[346088715,1734697843651,-427.0235025,0.00013,2]
[346088716,1734697843662,-464089.4829364,0.00013,2]
[346088717,1734697843673,-616.40024748,0.00013,2]
[346088718,1734697843684,-9255.0751524,0.00013,2]
[346088719,1734697843695,-3297.24680398,0.00013,2]
[346088720,1734697843765,-11662.96681677,0.00013,2]
[346088721,1734697843776,-262.43958622,0.00013,2]
[346088954,1734697846193,-12058.97981771,0.00013,2]
[346088956,1734697846205,-32217.3649194,0.00013,2]
[346088963,1734697846259,-4625.0,0.00013,2]
[346088965,1734697846271,-49055.92907982,0.00013,2]
[346088967,1734697846282,-19348.43728774,0.00013,2]
[346088982,1734697846411,-1612.1,0.00013,2]
[346088984,1734697846423,-2087.76734,0.00013,2]
[346088994,1734697846506,-7209.45209175,0.00013,2]
[346088996,1734697846522,-6294.0,0.00013,2]
[346089002,1734697846566,-10075.39898628,0.00013,2]
[346089004,1734697846577,-38915.64299955,0.00013,2]
[346089016,1734697846683,-740.74,0.00013,2]
[346089552,1734697928877,331.96,0.0001668,30]
[346089553,1734697929385,331.96,0.00019264,30]
[346089554,1734697929737,331.96,0.00021848,30]
[346089555,1734698443780,-155.41903536,0.000128,2]
[346089556,1734698443813,-398.78918546,0.000128,2]
[346089557,1734698443847,-192.88524536,0.000129,2]
[346089558,1734698443881,-11950.33063163,0.000129,2]
[346089559,1734698443915,-11334.88134588,0.000129,2]
[346089560,1734698443950,-1228.90837871,0.000129,2]
[346089561,1734698443982,-3713.753673,0.000129,2]
[346089562,1734698444017,-165.38021012,0.00012973,2]
[346089563,1734698444049,-500.0,0.00012973,2]
[346089564,1734698444081,-246.96249069,0.00012973,2]
[346089565,1734698444114,-300.05526745,0.00012973,2]
[346089566,1734698444146,-162.24798613,0.00012973,2]
[346089567,1734698444181,-500.0,0.00012973,2]
[346089568,1734698444214,-355.48562516,0.00012973,2]
[346089569,1734698444247,-179.00644439,0.00012973,2]
[346089570,1734698444280,-500.0,0.00012973,2]
[346089571,1734698444312,-500.0,0.00012973,2]
[346089572,1734698444346,-7334.0,0.00012986,2]
[346089573,1734698444379,-539.74411422,0.0001299,2]
[346089574,1734698444411,-539.74411422,0.0001299,2]
[346089575,1734698444444,-539.74411422,0.0001299,2]
[346089576,1734698444476,-524.65480191,0.00012999,2]
[346089577,1734698444512,-500.0,0.00012999,2]
[346089578,1734698444545,-500.0,0.00012999,2]
[346089579,1734698444580,-632.28999712,0.00012999,2]
[346089580,1734698444614,-181.36555523,0.00012999,2]
[346089581,1734698444649,-500.0,0.00012999,2]
[346089582,1734698444685,-7500.0,0.00012999,2]
[346089583,1734698444720,-7500.0,0.00012999,2]
[346089584,1734698444755,-7500.0,0.00012999,2]
[346089585,1734698444791,-7382.02986692,0.00012999,2]
[346089586,1734698451983,-34841.64939733,0.00013,2]
[346089587,1734698453238,-120000.0,0.00013,2]
[346089588,1734698468872,-649.3823955,0.000129,2]
[346089589,1734698468941,-58701.235209,0.00013,2]
[346089591,1734698587965,433.78,0.00010137,2]
[346089593,1734698677903,192446.97247694,0.00015,7]
[346089594,1734698704472,150.0,0.00011688,2]
[346089595,1734698704804,150.0,0.00011728,2]
[346089596,1734698705143,150.0,0.00011769,2]
[346089597,1734698705529,150.0,0.00011809,2]
[346089598,1734698705934,150.0,0.0001185,2]
[346089599,1734698706457,150.0,0.00011891,2]
[346089600,1734698706822,150.0,0.00011931,2]
[346089601,1734698707199,150.0,0.00011972,2]
[346089602,1734698707544,150.0,0.00012012,2]
[346089603,1734698708310,150.0,0.00012053,2]
[346089604,1734698708679,150.0,0.00012093,2]
[346089605,1734698717995,150.0,0.00011688,2]
[346089606,1734698718357,150.0,0.00011806,2]
[346089607,1734698718701,150.0,0.00011924,2]
[346089608,1734698719019,150.0,0.00012042,2]
[346089609,1734698726038,786.81,0.00011746,2]
[346089610,1734698728690,2067.41,0.0001184,2]
[346089611,1734698728936,492.46,0.0001184,2]
[346089612,1734698729271,150.0,0.00011688,2]
[346089613,1734698729644,150.0,0.00011832,2]
[346089614,1734698729981,150.0,0.00011976,2]
[346089615,1734698734363,150.89444968,0.00011688,2]
[346089616,1734698739677,167.57,0.00012056,2]
[346089617,1734698752433,150.0,0.00011688,2]
[346089618,1734698765827,250.0,0.00011697,2]
[346089619,1734698814768,4140.69958875,0.00012021,2]
[346089620,1734698819736,4140.69958875,0.00012028,2]
[346089621,1734698821328,282.16,0.00016658,30]
[346089622,1734698821652,282.16,0.00019242,30]
[346089623,1734698821811,57.67637282,0.00011697,2]
[346089624,1734698821833,192.32362718,0.00011697,2]
[346089625,1734698822194,282.16,0.00021826,30]
[346089626,1734698824749,4140.69958875,0.00012034,2]
[346089627,1734698824801,1000.0,0.00023,120]
[346089631,1734698854748,1000.0,0.000234,120]
[346089632,1734698884224,1409.23,9.753e-05,2]
[346089633,1734698884491,1409.23,0.00012017,2]
[346089634,1734698932458,2000.0,0.00011671,2]
[346089635,1734698935818,1281.5,0.000234,120]
[346089639,1734698966199,848.51678407,0.00011671,2]
[346089640,1734698966222,1035.89321593,0.00011671,2]
[346089644,1734699026668,762.58681944,0.000225,30]
[346089669,1734699032436,-150.0,0.00012121,2]
[346089670,1734699032446,-150.0,0.00012121,2]
[346089671,1734699032457,-150.0,0.00012134,2]
[346089672,1734699032467,-150.0,0.0001216,2]
[346089673,1734699032477,-150.0,0.00012175,2]
[346089674,1734699032486,-300.0,0.000122,4]
[346089675,1734699032496,-150.0,0.00012215,2]
[346089676,1734699032506,-150.0,0.00012256,2]
[346089677,1734699032515,-150.0,0.00012265,2]
[346089678,1734699032525,-150.0,0.00012278,2]
[346089679,1734699032535,-150.0,0.00012296,2]
[346089680,1734699032544,-74.17860046,0.000123,4]
[346089681,1734699032556,-525.82139954,0.000123,4]
[346089682,1734699032566,-150.0,0.00012337,2]
[346089683,1734699032575,-150.0,0.00012378,2]
[346089684,1734699032591,-150.0,0.00012396,2]
[346089685,1734699032602,-1000.0,0.000124,4]
[346089686,1734699032613,-150.0,0.00012409,2]
[346089687,1734699032622,-150.0,0.00012418,2]
[346089688,1734699032633,-150.0,0.00012459,2]
[346089689,1734699032643,-250.0,0.00012492,2]
[346089690,1734699032653,-150.0,0.00012499,2]
[346089691,1734699032662,-1300.0,0.000125,4]
[346089692,1734699032672,-150.0,0.00012514,2]
[346089693,1734699032681,-150.0,0.0001254,2]
[346089694,1734699032691,-150.0,0.00012553,2]
[346089695,1734699032702,-150.0,0.00012553,2]
[346089696,1734699032716,-300.0,0.0001258,2]
[346089697,1734699032726,-150.0,0.0001258,2]
[346089698,1734699032737,-1700.0,0.000126,4]
[346089699,1734699032747,-150.0,0.00012621,2]
[346089700,1734699032757,-150.0,0.00012632,2]
[346089701,1734699032768,-150.0,0.00012662,2]
[346089702,1734699032778,-2871.690416,0.00012679,2]
[346089703,1734699032789,-150.0,0.00012698,2]
[346089704,1734699032799,-300.0,0.000127,4]
[346089705,1734699032811,-150.0,0.00012702,2]
[346089706,1734699032822,-150.0,0.00012743,2]
[346089707,1734699032833,-150.0,0.0001275,2]
[346089708,1734699032844,-150.0,0.00012783,2]
[346089709,1734699032855,-415.91699699,0.0001279,2]
[346089710,1734699032866,-300.0,0.000128,4]
[346089711,1734699032876,-150.0,0.00012824,2]
[346089713,1734699032887,-150.0,0.00012842,2]
[346089715,1734699032897,-150.0,0.00012865,2]
[346089716,1734699032906,-150.0,0.00012868,2]
[346089717,1734699032916,-3719.59667179,0.000129,2]
[346089718,1734699032926,-158.51714257,0.000129,2]
[346089719,1734699032937,-300.0,0.000129,4]
[346089721,1734699032947,-7005.41121658,0.000129,2]
[346089725,1734699032978,-7718.93273947,0.000129,2]
[346089727,1734699032989,-3438.21443363,0.000129,2]
[346089729,1734699032999,-2475.835782,0.000129,2]
[346089732,1734699033008,-432.921597,0.000129,2]
[346089735,1734699033019,-150.0,0.00012905,2]
[346089738,1734699033028,-150.0,0.00012946,2]
[346089740,1734699033038,-648.02224448,0.00012973,2]
[346089742,1734699033047,-500.0,0.00012973,2]
[346089744,1734699033056,-178.42411828,0.00012973,2]
[346089746,1734699033067,-150.0,0.00012986,2]
[346089748,1734699033077,-159.63025331,0.00012986,2]
[346089750,1734699033086,-179.31771938,0.00012986,2]
[346089752,1734699033096,-230.42880097,0.00012986,2]
[346089753,1734699033106,-150.00000001,0.00012986,2]
[346089755,1734699033116,-500.0,0.00012999,2]
[346089757,1734699033125,-150.0,0.00012999,2]
[346089759,1734699033135,-150.0,0.00012999,2]
[346089761,1734699033146,-150.0,0.00012999,2]
[346089764,1734699033156,-150.0,0.00012999,2]
[346089783,1734699033316,-150.0,0.00012999,2]
[346089786,1734699033359,-150.0,0.00012999,2]
[346089787,1734699033370,-150.0,0.00012999,2]
[346089788,1734699033380,-150.0,0.00012999,2]
[346089789,1734699033389,-238.66276981,0.00012999,2]
[346089790,1734699033399,-4365.54228113,0.00013,2]
[346089791,1734699033411,-10680.61932743,0.00013,2]
[346089792,1734699033422,-887.80834405,0.00013,2]
[346089793,1734699033434,-941.61,0.00013,2]
[346089794,1734699033503,-11395.15741727,0.00013,2]
[346089795,1734699033524,-73017.19173614,0.00013,2]
[346089796,1734699033536,-623.49309,0.00013,2]
[346089797,1734699033548,-1187.8,0.00013,2]
[346089798,1734699033559,-465.51957055,0.00013,2]
[346089800,1734699033578,-42338.4078,0.00013,2]
[346089804,1734699033602,-501.19653793,0.00012973,2]
[346089806,1734699033612,-4090.79523186,0.00013,2]
[346089810,1734699033644,-54215.59320265,0.00013,2]
[346089812,1734699033656,-71002.32791175,0.00013,2]
[346089852,1734699038350,-34764.064656,0.00013,2]
[346089853,1734699038365,-2490.96780004,0.00013,2]
[346089854,1734699038398,-610.3955,0.00013,2]
[346089855,1734699038410,-2784.63500784,0.00013,2]
[346089856,1734699038582,-4284.72924196,0.00013,2]
[346089857,1734699038627,-3002.600004,0.00013,2]
[346089858,1734699038639,-94027.059345,0.00013,2]
[346089859,1734699038650,-18497.91182338,0.00013,2]
[346089860,1734699038662,-3799.93045815,0.00013,2]
[346089861,1734699038673,-1011.01,0.00013,2]
[346089862,1734699038685,-596.3914685,0.00013,2]
[346089863,1734699038696,-1100.55,0.00013,2]
[346089864,1734699038715,-5942.21629055,0.00013,2]
[346089865,1734699038747,-1164.16300045,0.00013,2]
[346089984,1734699040403,-251507.04960548,0.00013,2]
[346089986,1734699040412,-1448.34959452,0.00013,2]
[346089988,1734699040424,-262.42070276,0.00013,2]
[346090016,1734699040683,-293432.77300608,0.00013,2]
[346090018,1734699040694,-114807.56950521,0.00013,2]
[346090126,1734699041864,-13332.86346731,0.00013,2]
[346090127,1734699041897,-3588.648222,0.00013,2]
[346090128,1734699041914,-3089.77479609,0.00013,2]
[346090129,1734699041926,-4691.2,0.00013,2]
[346090156,1734699042396,-10000.0,0.00013,2]
[346090305,1734699043518,-1543592.90222321,0.00013,2]
[346090308,1734699043531,-1121655.98492832,0.00013,2]
[346090331,1734699043632,-3313.65555235,0.00013,2]
[346090341,1734699043692,-70350.0,0.00013,2]
[346090353,1734699043805,-95077.83593113,0.00013,2]
[346090356,1734699043821,-13636.89355177,0.00013,2]
[346090358,1734699043832,-758.90662212,0.00013,2]
[346090511,1734699046459,-945.93183588,0.00013,2]
[346090512,1734699046475,-1224.44927959,0.00013,2]
[346090513,1734699046487,-4760.49929049,0.00013,2]
[346090514,1734699046532,-1942.49565983,0.00013,2]
[346090515,1734699046650,-3006.26583043,0.00013,2]
[346090522,1734699475259,150.83,0.00010137,2]
[346090524,1734699519842,452.1891618,0.000235,120]
[346090525,1734699570231,1500.0,0.00012088,2]
[346090526,1734699592678,2751.0,0.00011962,2]
[346090528,1734699609168,402.49,0.0001194,2]
[346090529,1734699621136,570.55,0.0001194,2]
[346090530,1734699638571,498.13,0.00012025,2]
[346090531,1734699682996,250.0,0.00011929,2]
[346090532,1734699768254,2841.10678407,0.0001197,2]
[346090533,1734699768280,1214.84321593,0.0001197,2]
[346090534,1734699795114,1397.08,0.00010067,2]
[346090535,1734699842030,239.83,0.00016658,30]
[346090536,1734699842395,239.83,0.00019242,30]
[346090537,1734699842971,239.83,0.00021826,30]
[346090538,1734699854469,500.0,0.000225,30]
[346090539,1734699907836,150.00000001,0.00011688,2]
[346090540,1734699916757,150.0,0.00011688,2]
[346090545,1734699963407,703.39961618,0.000235,120]
[346090546,1734700015866,9622.26129575,0.000225,30]
[346090547,1734700024502,150.0,0.0001197,2]
[346090549,1734700042184,163.03,0.00011985,2]
[346090556,1734700067444,250.0,0.00011959,2]
[346090557,1734700127449,1000.0,0.00011925,2]
[346090558,1734700143559,1658.05,0.00011927,2]
[346090559,1734700199056,2000.0,0.00011926,2]
[346090560,1734700209484,448.96,0.00011927,2]
[346090579,1734700231640,-473.9,0.00012173,2]
[346090580,1734700231651,-398.78918546,0.00012198,2]
[346090581,1734700231662,-166.95,0.00012298,2]
[346090583,1734700231673,-214.61319718,0.00012331,2]
[346090584,1734700231718,-1130.60222451,0.00012331,2]
[346090585,1734700231732,-51.86457831,0.00012331,2]
[346090586,1734700231743,-155.41903536,0.00012472,2]
[346090587,1734700231757,-554.30586625,0.00012572,2]
[346090588,1734700231770,-116.75011669,0.00012572,2]
[346090589,1734700231782,-415.91699699,0.00012717,2]
[346090590,1734700231793,-3077.403,0.00012739,2]
[346090591,1734700231803,-171.511,0.00012739,2]
[346090592,1734700231814,-163.03,0.00012841,2]
[346090593,1734700231824,-300.0,0.00012897,2]
[346090594,1734700231835,-192.88524536,0.00012899,2]
[346090595,1734700231847,-1133.48813466,0.00012899,2]
[346090596,1734700231861,-2303.27182477,0.00012899,2]
[346090597,1734700231871,-153.6135474,0.00012899,2]
[346090598,1734700231882,-692.09012113,0.00012899,2]
[346090599,1734700231904,-441.39801345,0.00012899,2]
[346090600,1734700231914,-2303.27182475,0.00012899,2]
[346090601,1734700231925,-153.61354733,0.00012899,2]
[346090602,1734700231934,-372.77259741,0.00012899,2]
[346090603,1734700231951,-760.71553717,0.00012899,2]
[346090604,1734700231962,-2303.27182475,0.00012899,2]
[346090605,1734700231972,-153.61354733,0.00012899,2]
[346090606,1734700231982,-1133.48813458,0.00012899,2]
[346090607,1734700231992,-2303.27182475,0.00012899,2]
[346090608,1734700232002,-153.61354733,0.00012899,2]
[346090609,1734700232011,-1133.48813458,0.00012899,2]
[346090610,1734700232021,-2303.27182475,0.00012899,2]
[346090611,1734700232031,-1133.48813458,0.000129,2]
[346090612,1734700232041,-2303.27182475,0.000129,2]
[346090613,1734700232051,-153.61354733,0.000129,2]
[346090614,1734700232061,-1133.48813458,0.000129,2]
[346090615,1734700232071,-2303.27182475,0.000129,2]
[346090616,1734700232082,-153.61354733,0.000129,2]
[346090617,1734700232092,-1133.48813458,0.000129,2]
[346090618,1734700232106,-2303.27182475,0.000129,2]
[346090619,1734700232116,-153.61354733,0.000129,2]
[346090620,1734700232126,-1133.48813458,0.000129,2]
[346090621,1734700232136,-2303.27182475,0.000129,2]
[346090622,1734700232146,-1133.48813458,0.000129,2]
[346090623,1734700232156,-2303.27182475,0.000129,2]
[346090624,1734700232166,-153.61354733,0.000129,2]
[346090625,1734700232176,-517.55285125,0.000129,2]
[346090626,1734700232186,-158.8210527,0.000129,2]
[346090627,1734700232197,-60037.56,0.00012934,2]
[346090628,1734700232207,-3389.96823238,0.00012959,2]
[346090629,1734700232220,-3944.03176762,0.00012959,2]
[346090630,1734700232230,-200.0,0.00012961,2]
[346090631,1734700232240,-500.0,0.00012973,2]
[346090632,1734700232251,-165.38021012,0.00012973,2]
[346090633,1734700232261,-500.0,0.00012973,2]
[346090634,1734700232271,-162.24798613,0.00012973,2]
[346090635,1734700232281,-300.05526745,0.00012973,2]
[346090636,1734700232291,-246.96249069,0.00012973,2]
[346090637,1734700232301,-500.0,0.00012973,2]
[346090639,1734700232311,-355.48562516,0.00012973,2]
[346090641,1734700232321,-500.0,0.00012973,2]
[346090643,1734700232331,-539.74411422,0.00012989,2]
[346090645,1734700232341,-539.74411422,0.0001299,2]
[346090646,1734700232351,-539.74411422,0.0001299,2]
[346090647,1734700232365,-255.01455571,0.00012998,2]
[346090648,1734700232374,-500.0,0.00012998,2]
[346090649,1734700232383,-500.0,0.00012998,2]
[346090650,1734700232393,-194.95959518,0.00012998,2]
[346090651,1734700232402,-500.0,0.00012998,2]
[346090652,1734700232412,-500.0,0.00012998,2]
[346090653,1734700232421,-500.0,0.00012998,2]
[346090654,1734700232430,-500.0,0.00012998,2]
[346090655,1734700232439,-500.0,0.00012998,2]
[346090656,1734700232450,-500.0,0.00012998,2]
[346090657,1734700232459,-500.0,0.00012998,2]
[346090658,1734700232469,-152.87157432,0.00012998,2]
[346090659,1734700232479,-627.91479046,0.00012998,2]
[346090660,1734700232488,-3926.7853202,0.00012998,2]
[346090670,1734700232591,-3573.2146798,0.00012998,2]
[346090672,1734700232606,-7500.0,0.00012998,2]
[346090674,1734700232615,-475204.90546327,0.00012999,2]
[346090676,1734700232624,-500.0,0.00012999,2]
[346090678,1734700232634,-7500.0,0.00012999,2]
[346090680,1734700232643,-7382.02986692,0.00012999,2]
[346090682,1734700232652,-62479.21011512,0.00013,2]
[346090686,1734700232685,-945.85602,0.00013,2]
[346090689,1734700232696,-441.28711977,0.00013,2]
[346090691,1734700232714,-1300.30857439,0.00013,2]
[346090694,1734700232732,-23833.93293945,0.00013,2]
[346090987,1734700237483,-2888.475079,0.000129,2]
[346090988,1734700237493,-179.00644439,0.00012973,2]
[346090989,1734700237503,-13088.97847666,0.00013,2]
[346090990,1734700237547,-28105.61356848,0.00013,2]
[346090991,1734700237718,-17000.00000005,0.00013,2]
[346090992,1734700237730,-19600.0,0.00013,2]
[346091041,1734700238346,-2832.3511966,0.00013,2]
[346091157,1734700239593,-108787.18986075,0.00013,2]
[346091169,1734700239712,-3110.61759793,0.00013,2]
[346091171,1734700239724,-947.72946,0.00013,2]
[346091177,1734700239773,-1461.06630003,0.00013,2]
[346091184,1734700239832,-523988.59006845,0.00013,2]
[346091203,1734700240002,-276.51996655,0.00013,2]
[346091205,1734700240013,-5648.22,0.00013,2]
[346091207,1734700240024,-647.76,0.00013,2]
[346091500,1734700242754,-1447.78479097,0.00013,2]
[346091503,1734700242767,-769.45156274,0.00013,2]
[346091505,1734700242778,-9414.3,0.00013,2]
[346091526,1734700243133,-347.8851,0.00013,2]
[346091527,1734700243148,-601.98170784,0.00013,2]
[346091538,1734700245605,-9656.03291102,0.00013,2]
[346091539,1734700245663,-6496.98019051,0.00013,2]
[346091540,1734700245676,-287.07983782,0.00013,2]
[346091541,1734700245723,-477.12675858,0.00013,2]
[346091542,1734700245916,-8099.31360231,0.00013,2]
[346091550,1734700379167,154.86,0.00010137,2]
[346091552,1734700544787,1263.17678406,0.00011943,2]
[346091553,1734700544810,336.82321594,0.00011943,2]
[346091554,1734700589367,200.0,0.00011949,2]
[346091555,1734700602499,28378.49896265,0.000235,120]
[346091556,1734700604756,1500.0,0.00011949,2]
[346091557,1734700663878,1284.19,0.00010034,2]
[346091558,1734700668630,167.32,0.00011948,2]
[346091559,1734700699155,247.89207909,0.000235,120]
[346091561,1734700802904,1000.0,0.000225,45]
[346091562,1734700888271,150.0,0.0001,2]
[346091563,1734700916751,150.89083964,0.00011,3]
[346091564,1734700934539,164.65,0.00011946,2]
[346091565,1734700947138,250.0,0.00011946,2]
[346091566,1734701009377,250.0,0.00011944,2]
[346091567,1734701014463,10000.0,0.000225,30]
[346091568,1734701021003,1048.36,0.00011944,2]
[346091569,1734701031413,10000.0,0.000225,30]
[346091570,1734701048221,10000.0,0.000225,30]
[346091571,1734701059359,150.0,0.00011944,2]
[346091572,1734701069116,10000.0,0.000225,30]
[346091573,1734701079917,203.85,0.00016658,30]
[346091574,1734701080442,203.85,0.00019242,30]
[346091575,1734701080666,203.85,0.00021826,30]
[346091576,1734701092440,10000.0,0.000225,30]
[346091577,1734701103090,2000.0,0.00011946,2]
[346091578,1734701106889,10000.0,0.000225,30]
[346091579,1734701116850,2347.76594442,0.00011946,2]
[346091580,1734701116874,499.64405558,0.00011946,2]
[346091581,1734701126748,10000.0,0.000225,30]
[346091582,1734701131755,8413.49909004,0.0001,2]
[346091583,1734701134182,1086.85685438,0.00011946,2]